Cogmind - Beta 14 @@@ ROGUE MODE // 2024.09.23 @ 20:23:57 Player: Duduxx Result: Destroyed by G-47 Trooper with Particle Gun Performance ------------- Evolutions (2) 1000 Regions Visited (4) 800 Robots Destroyed (48) 240 Value Destroyed (1330) 1330 Prototype IDs (8) 160 Alien Tech Used (0) 0 Bonus (55) 55 TOTAL SCORE: 3585 Bonus ------- High Alert Combat Kills 55 Cogmind --------- Core Integrity 0/550 Matter 285/300 Energy 99/100 System Corruption 0% Temperature Danger (403) Movement Core (50) Location -8/Storage Parts ------- > --- POWER (1) -------- (None) > --- PROPULSION (4) --- (None) > --- UTILITY (4) ------ (None) > --- WEAPON (2) ------- (None) > --- INVENTORY (5) ---- Light Nuclear Core Heat Sink Advanced Beam Rifle Heavy Particle Cannon Rocket Launcher Peak State ------------ > --- POWER ------------ Cooled Ion Engine > --- PROPULSION ------- Light Treads Light Treads Aluminum Leg Improved Aluminum Leg > --- UTILITY ---------- Improved Heat Sink Medium Storage Unit Advanced Weight Redist. System Hacking Suite > --- WEAPON ----------- Improved Medium Laser Advanced Beam Rifle > --- INVENTORY -------- Improved Ion Engine Light Nuclear Core Heat Sink Advanced Weight Redist. System Field Laser Field Laser Advanced Beam Cannon Rocket Launcher Mace [Rating: 27] Favorites ----------- Power Cooled Ion Engine Engine Cooled Ion Engine Propulsion Light Treads Treads Light Treads Leg Aluminum Leg Flight Unit Improved Flight Unit Utility Medium Storage Unit Device Advanced Weight Redist. System Storage Medium Storage Unit Processor Transport Network Coupler Hackware Hacking Suite Protection Power Shielding Weapon Assault Rifle Energy Gun Small Laser Energy Cannon Heavy Particle Cannon Ballistic Gun Assault Rifle Ballistic Cannon Light Cannon Launcher Rocket Launcher Build | -11 -10 -9 -8 -8 ------- Run | Yrd Mat Mat Mat Sto Slots Evolved 4 | . . 2 2 . Power . | . . . . . Propulsion 2 | . . 1 1 . Utility 2 | . . 1 1 . Weapon . | . . . . . Parts Attached 70 | 6 6 24 4 30 Power 4 | 1 . 1 2 . Engine 4 | 1 . 1 2 . Core . | . . . . . Reactor . | . . . . . Propulsion 18 | 2 2 8 . 6 Treads 9 | 2 . 4 . 3 Leg 6 | . 2 1 . 3 Wheel . | . . . . . Hover . | . . . . . Flight 3 | . . 3 . . Utility 23 | 1 4 7 2 9 Device 11 | . . 4 2 5 Storage 6 | 1 3 . . 2 Processor 1 | . 1 . . . Hackware 1 | . . . . 1 Protection 4 | . . 3 . 1 Artifact . | . . . . . Weapon 25 | 2 . 8 . 15 Energy Gun 10 | 1 . 4 . 5 Energy Cannon 6 | . . 1 . 5 Ballistic Gun 3 | 1 . 1 . 1 Ballistic Cannon 3 | . . 2 . 1 Launcher 3 | . . . . 3 Special Weapon . | . . . . . Impact Weapon . | . . . . . Slashing Weapon . | . . . . . Piercing Weapon . | . . . . . Special Melee Weapon . | . . . . . Unidentified Prototypes 8 | . . 6 . 2 Parts Lost 19 | . . 3 7 9 Power 2 | . . . 2 . Propulsion 9 | . . 1 3 5 Utility 6 | . . 1 2 3 Weapon 2 | . . 1 . 1 Highest Loss Streak 7 | . . 3 7 7 To Critical Strikes . | . . . . . Average Slot Usage (%) 92 | . 98 94 55 88 Engine 10 | . 14 11 9 9 Treads 9 | . 16 3 . 11 Leg 14 | . 11 16 . 15 Flight 4 | . . 12 14 . Device 12 | . . 11 12 23 Storage 10 | . 14 11 9 9 Processor 3 | . 12 1 . . Hackware 1 | . . . . 3 Protection 3 | . . 8 7 . Energy Gun 10 | . 14 11 . 7 Energy Cannon 3 | . . . . 9 Ballistic Gun 5 | . 14 5 . . Peak Build Rating 27 | 6 7 23 20 27 Average Rating 16 | 4 6 17 16 22 On Entrance 8 | . 6 7 20 10 Naked Turns 1 | . . . . 1 Heaviest Build 31 | 11 26 26 22 31 Greatest Support 43 | 40 40 43 24 37 Greatest Overweight (x) 1 | . 1 1 1 1 Average Overweight (x) . | . . . . . Largest Inventory Capacity 15 | 8 15 10 10 10 Average Capacity 9 | 7 9 10 10 9 Most Carried 10 | 1 6 10 10 10 Average Carried 6 | . 3 8 9 8 Final Capacity 10 | 8 10 10 10 5 Final Carried 10 | 1 6 10 8 5 Class Distribution -------------------- 57% | Mutant 42% | Scavenger-Mutant Dominant Class ---------------- Mutant | -10/Materials Scavenger-Mutant | -9/Materials Mutant | -8/Materials Scavenger-Mutant | -8/Storage Resources | -11 -10 -9 -8 -8 ----------- Run | Yrd Mat Mat Mat Sto Matter Collected 1085 | 99 164 318 . 504 Remotely . | . . . . . Salvage Created 1888 | . 202 648 . 1038 Parts 101 | . 17 34 . 50 Haulers Intercepted 7 | . 1 3 . 3 Recyclers Shooed . | . . . . . Parts Field Recycled . | . . . . . Retrieved Matter . | . . . . . Parts Self-Destructed . | . . . . . Prevented . | . . . . . Kills | -11 -10 -9 -8 -8 ------- Run | Yrd Mat Mat Mat Sto Combat Hostiles Destroyed 34 | . 6 9 . 19 Guns 15 | . 6 6 . 3 Cannons 11 | . . 3 . 8 AOE 8 | . . . . 8 Classes Destroyed 9 | . 3 4 . 2 Worker 3 | . . 2 . 1 Hauler 7 | . 1 3 . 3 Recycler 2 | . . . . 2 Operator 1 | . . . . 1 Watcher 1 | . . 1 . . Swarmer 7 | . 3 . . 4 Grunt 12 | . 3 3 . 6 Brawler 2 | . . 1 . 1 Sentry 13 | . . 5 . 8 Best Kill Streak 10 | . 3 3 . 10 Combat Bots Only 9 | . 3 2 . 9 Max Kills in Single Turn 5 | . 2 1 . 5 Gunslinging 1 | . 1 . . . Exploded 3 | . . . . 3 Melee . | . . . . . Uniques/NPCs Destroyed . | . . . . . Combat | -11 -10 -9 -8 -8 -------- Run | Yrd Mat Mat Mat Sto Hostile Shots Fired 268 | . 23 59 60 126 Missed 88 | . 9 20 23 36 Damage Taken 2988 | . 150 615 804 1419 Core 651 | . 13 85 280 273 Absorbed by Shields 60 | . . . 16 44 Redirected to Shielding 74 | . . 40 34 . Ignored by Resistances 19 | . . . . 19 Core Remaining (%) 90 | 100 94 78 . . Volleys Fired 110 | . 20 50 . 40 Largest 2 | . 2 2 . 2 Hottest 150 | . 60 90 . 150 Shots Fired 190 | . 40 70 . 80 Gun 115 | . 40 45 . 30 Cannon 69 | . . 25 . 44 Launcher 6 | . . . . 6 Special . | . . . . . Kinetic 61 | . 20 41 . . Thermal 94 | . 20 . . 74 Explosive 6 | . . . . 6 Electromagnetic 29 | . . 29 . . Robot Hit Streak 18 | . 8 14 . 18 Robot Miss Streak 4 | . 2 4 . 3 Penetration Max . | . . . . . Secondary Targets 4 | . 3 1 . . Max Gunslinging Chain 1 | . 1 1 . . Shots Hit Robots 139 | . 29 56 . 54 Core Hits 76 | . 12 28 . 36 Critical Kills . | . . . . . Critical Parts Destroyed . | . . . . . Critical Strikes 5 | . . 2 . 3 Burn 3 | . . . . 3 Blast 2 | . . 2 . . Melee Attacks . | . . . . . Impact . | . . . . . Slashing . | . . . . . Piercing . | . . . . . Sneak Attacks . | . . . . . Combat Hostiles . | . . . . . Follow-up Attacks . | . . . . . Damage Inflicted 3083 | 2 340 1058 . 1683 Guns 1250 | . 335 594 . 321 Cannons 1101 | . . 352 . 749 Explosions 702 | . . 99 . 603 Melee . | . . . . . Ramming 30 | 2 5 13 . 10 Kinetic 670 | . 171 499 . . Thermal 1333 | . 164 99 . 1070 Explosive 603 | . . . . 603 Electromagnetic 447 | . . 447 . . Impact . | . . . . . Slashing . | . . . . . Piercing . | . . . . . Highest Corruption 7 | . . 7 . . Average Corruption 6 | . . 6 . . Corruption Purged . | . . . . . Corruption Blocked . | . . . . . Effects 15 | . . 15 . . Message Errors 3 | . . 3 . . Matter Fused 4 | . . 4 . . Heat Flow Errors 1 | . . 1 . . Energy Discharges 1 | . . 1 . . Parts Fused 1 | . . 1 . . Data Loss (minor) 2 | . . 2 . . Data Loss (major) 2 | . . 2 . . Weapon Failures 1 | . . 1 . . Overload Shots . | . . . . . Overflow Damage 21 | . . . . 21 Projectiles . | . . . . . Explosions 21 | . . . . 21 Melee . | . . . . . Knockbacks . | . . . . . Impact . | . . . . . Kinetic . | . . . . . Secondary . | . . . . . Self-Inflicted Damage 39 | . . 18 . 21 Shots 2 | . . 1 . 1 Rammed 3 | 2 1 . . . Targets Rammed 7 | 2 1 2 . 2 Kicked 4 | . . 2 . 2 Crushed . | . . . . . Highest Temperature 398 | . 51 261 11 398 Average Temperature 61 | . 21 73 7 74 Received Heat Transfer 1122 | . 63 192 186 681 Effects 1 | . . . . 1 Shutdowns 1 | . . . . 1 Siege Activations . | . . . . . Robots Corrupted . | . . . . . Combat Hostiles . | . . . . . Parts Fried . | . . . . . Impact Corruptions . | . . . . . Robots Melted . | . . . . . Combat Hostiles . | . . . . . Parts Melted 6 | . . 1 . 5 Heat Transferred 2634 | . 375 150 . 2109 Parts Sabotaged . | . . . . . Parts Stolen . | . . . . . Parts Stripped . | . . . . . Power Chain Reactions 2 | . . 2 . . Alert | -11 -10 -9 -8 -8 ------- Run | Yrd Mat Mat Mat Sto Peak Influence 531 | . 147 212 109 531 Initial 89 | . . . 89 26 Average 129 | . 32 87 88 246 Maximum Alert Level 2 | . . 1 . 2 Low Security (%) 78 | 100 100 90 100 48 Level 1 13 | . . 9 . 27 Level 2 8 | . . . . 24 Level 3 . | . . . . . Level 4 . | . . . . . Level 5 . | . . . . . High Security . | . . . . . Max Security . | . . . . . Squads Dispatched 3 | . . 2 . 1 Investigation . | . . . . . Extermination . | . . . . . Reinforcement 3 | . . 2 . 1 Assault . | . . . . . Garrison . | . . . . . Intercept . | . . . . . Searches Triggered . | . . . . . Construction Impeded . | . . . . . Haulers Reinforced . | . . . . . Active Scanning Responses . | . . . . . Cargo Convoy Interrupts . | . . . . . Stealth | -11 -10 -9 -8 -8 --------- Run | Yrd Mat Mat Mat Sto Distress Signals 7 | . 2 1 1 3 Communications Jammed . | . . . . . Distress Signals . | . . . . . Times Spotted 59 | . 9 12 11 27 Peak Tracking Total 11 | . 4 3 11 7 Tactical Retreats . | . . . . . Traps | -11 -10 -9 -8 -8 ------- Run | Yrd Mat Mat Mat Sto Traps Triggered 1 | . . 1 . . Indirectly . | . . . . . Trap Hack Attempts . | . . . . . Triggered . | . . . . . Disarmed . | . . . . . Reprogrammed . | . . . . . Reused . | . . . . . Traps Extracted . | . . . . . Installed . | . . . . . Triggered . | . . . . . Machines | -11 -10 -9 -8 -8 ---------- Run | Yrd Mat Mat Mat Sto Machines Disabled 4 | . . 1 . 3 Max in Single Turn 1 | . . 1 . 1 Machines Repaired . | . . . . . Machines Dismantled . | . . . . . Machines Sabotaged . | . . . . . Overloaded Fab Kills . | . . . . . Hacking | -11 -10 -9 -8 -8 --------- Run | Yrd Mat Mat Mat Sto Machines Accessed 7 | . . 2 . 5 Terminals 7 | . . 2 . 5 Fabricators . | . . . . . Repair Stations . | . . . . . Recycling Units . | . . . . . Scanalyzers . | . . . . . Garrison Access . | . . . . . Total Hacks 13 | . . 4 . 9 Successful 4 | . . . . 4 Failed 9 | . . 4 . 5 Catastrophic 3 | . . . . 3 Database Lockouts . | . . . . . Manual 10 | . . 4 . 6 Terminals 13 | . . 4 . 9 Fabricators . | . . . . . Repair Stations . | . . . . . Recycling Units . | . . . . . Scanalyzers . | . . . . . Garrison Access . | . . . . . Terminal Hacks 4 | . . . . 4 Part Schematic 1 | . . . . 1 Open Door 1 | . . . . 1 Alert Level 1 | . . . . 1 Recall Investigation 1 | . . . . 1 Fabricator Hacks . | . . . . . Repair Station Hacks . | . . . . . Recycling Unit Hacks . | . . . . . Scanalyzer . | . . . . . Garrison Access Hacks . | . . . . . Unauthorized Hacks . | . . . . . Terminals . | . . . . . Fabricators . | . . . . . Repair Stations . | . . . . . Recycling Units . | . . . . . Scanalyzers . | . . . . . Garrison Access . | . . . . . Data Cores Recovered 1 | . . . . 1 Used . | . . . . . Hacking Detections 5 | . . 2 . 3 Full Trace Events 1 | . . . . 1 Feedback Events . | . . . . . Feedback Blocked . | . . . . . Robot Schematics Acquired . | . . . . . Robots Built . | . . . . . Authchips . | . . . . . Time . | . . . . . Total Robot Build Rating . | . . . . . Part Schematics Acquired 1 | . . . . 1 Parts Built . | . . . . . Authchips . | . . . . . Time . | . . . . . Total Part Build Rating . | . . . . . Parts Repaired . | . . . . . Time . | . . . . . Parts Recycled . | . . . . . Recycled Matter . | . . . . . Retrieved Matter . | . . . . . Retrieved Components . | . . . . . Parts Scanalyzed . | . . . . . Part Schematics Acquired . | . . . . . Parts Damaged . | . . . . . Bothacking | -11 -10 -9 -8 -8 ------------ Run | Yrd Mat Mat Mat Sto Used RIF Installer . | . . . . . Robots Hacked . | . . . . . Non-combat . | . . . . . Combat . | . . . . . Robot Hacks Applied . | . . . . . Relay Couplers Released . | . . . . . Fabnet Peak Effective % . | . . . . . Robots Rewired . | . . . . . Allies Hacked . | . . . . . Hacks Repelled . | . . . . . Allies | -11 -10 -9 -8 -8 -------- Run | Yrd Mat Mat Mat Sto Total Allies . | . . . . . Largest Group . | . . . . . Highest-Rated Group . | . . . . . Highest-Rated Ally . | . . . . . Total Orders . | . . . . . Ally Attacks . | . . . . . Total Damage . | . . . . . Kills . | . . . . . Allies Corrupted . | . . . . . Allies Melted . | . . . . . Intel | -11 -10 -9 -8 -8 ------- Run | Yrd Mat Mat Mat Sto Robot Analysis Total . | . . . . . Derelict Logs Recovered . | . . . . . Drone Launches . | . . . . . Drone Recoveries . | . . . . . Exploration | -11 -10 -9 -8 -8 ------------- Run | Yrd Mat Mat Mat Sto Turns Passed 1984 | 61 475 676 50 722 Spaces Moved 1488 | 32 282 668 93 413 Core 27 | 2 . . 12 13 Treads 185 | 30 146 5 . 4 Legs 769 | . 136 237 . 396 Wheels . | . . . . . Hover . | . . . . . Flight 507 | . . 426 81 . Fastest Speed 34 | 50 120 34 34 50 Average Speed 101 | 153 140 71 49 130 Slowest Speed 240 | 160 190 240 110 240 Overloaded Moves . | . . . . . Propulsion Burnouts . | . . . . . Robots Hopped 1 | . . . 1 . Cave-ins Triggered . | . . . . . Exploration Rate (%) 38 | 4 59 53 13 64 Regions Visited 4 Branch Regions 1 Pre-discovered Areas . | . . . . . Known Exits Taken . | . . . . . Unknown Exits Taken 4 | 1 1 1 1 . Scrap Searched . | . . . . . Spaces Dug . | . . . . . Terrain Destroyed 57 | . . 3 . 54 Melee . | . . . . . Projectile 5 | . . . . 5 AOE 52 | . . 3 . 49 Terrain Rammed . | . . . . . Walls Destroyed . | . . . . . Machines Disabled . | . . . . . Actions | -11 -10 -9 -8 -8 --------- Run | Yrd Mat Mat Mat Sto Total 1774 | 40 318 805 96 515 Wait 10 | . 3 7 . . Move 1482 | 31 281 667 90 413 Hop 1 | . . . 1 . Pick Up 31 | 1 4 16 . 10 Fast Attach 35 | 6 1 15 1 12 Attach 20 | . 2 6 3 9 Detach 26 | . 2 16 1 7 Swap 15 | . 3 3 . 9 Drop 37 | . 1 23 . 13 Fire 110 | . 20 50 . 40 Melee . | . . . . . Ram . | . . . . . Kick 4 | . . 2 . 2 Crush 3 | 2 1 . . . Escape Stasis . | . . . . . Rewire . | . . . . . Trap . | . . . . . Miscellaneous . | . . . . . Route ------- -11/Scrapyard -10/Materials (discovered 2 exits: *Mat / [*Min]) -9/Materials (discovered 2 exits: [*Mat x2]) -8/Materials -8/Storage History --------- Turn | Location | Event 23 | -11/Scrapyard | Discovered new exit (range 16) 62 | -11/Scrapyard | Entered Materials 264 | -10/Materials | Discovered new exit (range 7) 329 | -10/Materials | Build established: Mutant 530 | -10/Materials | Discovered new exit (range 6) 537 | -10/Materials | Entered another Materials area 537 | -9/Materials | Evolved 2 slots: Propulsion x1, Utility x1 838 | -9/Materials | Build established: Scavenger-Mutant 957 | -9/Materials | Lost 3 parts (1n1u1w) 1087 | -9/Materials | Discovered new exit (range 8) 1203 | -9/Materials | Discovered new exit (range 8) 1207 | -9/Materials | Build established: Mutant 1213 | -9/Materials | Entered another Materials area 1213 | -8/Materials | Evolved 2 slots: Propulsion x1, Utility x1 1253 | -8/Materials | Discovered new exit (range 9) 1262 | -8/Materials | Core integrity fell below 50% 1263 | -8/Materials | Entered Storage 1288 | -8/Storage | Lost 7 parts (2p3n2u) 1697 | -8/Storage | Destroyed 9 combat bots 1800 | -8/Storage | Build established: Scavenger-Mutant 1976 | -8/Storage | Core integrity fell below 20% 1984 | -8/Storage | Released all parts (6) 1985 | -8/Storage | Destroyed by G-47 Trooper with Particle Gun Last Messages --------------- 01972_ U-05 Engineer lays Concrete. 01973_ Hvy. Particle Cannon destroyed. 01973_ U-05 Engineer builds a Wall. 01973_ Critical hit (Burn: +37). 01975_ G-47 Trooper destroyed. 01977_ U-05 Engineer lays Concrete. 01980_ U-05 Engineer builds a Wall. 01981_ Destroyed Lgt. Nuclear Core. 01982_ U-05 Engineer lays Concrete. 01983_ Power failure, Cld. Ion Engine shutdown. 01983_ U-05 Engineer lays Concrete. 01984_ Dropped Med. Storage Unit. 01984_ Critical hit (Burn: +37). 01984_ Released Cld. Ion Engine. 01984_ Released Imp. Heat Sink. 01984_ Released Hacking Suite. 01984_ Released Hvy. Particle Cannon. 01984_ Released Reactive Plating. 01984_ Released Field Laser. 01985_ U-05 Engineer lays Concrete. Map ----- +----------------------------------------------------+ | ??# ! ##????????# !######## [ #?????? | | ### !! #^????????# !] ]! #!%""""" #?????? | | ! = #?^???????# *!##### # =""""" #?????? | | #^????????# =#???# # """"" #?????? | | #??????^??+ #???#][# #?????? | | ####+#### #?????????# #???# %# """ #?????? | | ????????######?????????#+#######]]#[=""" #?????? | | ???????????????????????# # ]#[%!"" #?????? | | ???????????????????????# ] + #=[% #?????? | | ???????????????????????# # #####+####?????? | | ???????????????????????# # ### #???????? | | ???????????????????????# ?# #???????? | | ???????????????????????# [?# T #???????? | | ???????????????????????# ??###### #???????? | | ???????????????????????# ???????## "#???????? | | ???????????????????????# / ?????????# ########## | | ?????????????????????#######?????????# # | | ?????????????????????#"""#???????###?# # | | ?????????????????????#"G"#???????"""?# # | | ??????????????????####" "###?????""" # # | | ??????????????????# #???????" # # | | ??????????????????#"" ] #???????? + + | | ?????????????????##"Y! gg%*#??????? # #####+#### | | ?????????????????# " % !!![#?????? # ### #?? | | ?????????????????# * !!*#???? ?# #?? | | ?????????????????# @[#??? ?# T #?? | | ?????????????????# u #??##"Y"?####+## #?? | | ?????????????????# u #???#""??# ## ##?? | | ?????????????????# Y #?######## % ## #??? | | ????????????????#### ##+#### #"% ## #??? | | ??????????? ##= ## #??? | | ??????????? g !%+ """ ## ##?? | | ??????????? ## """ ## T#?? | | ????????????###+############## ## """ ## ##?? | | ??????????????????????????######+#### #""""??? | | ??????????????????????????# # """ #??????? | | ??????????????????????????# # """ #??????? | | ??????????????????????????# # """ #??????? | | ??????????????????????????# # ? #??????? | | ??????????????????????????#[ ###???#??????? | | ??????????????????????????#%""" """ #????????????? | | ?????????????????????????##=""" """ #????????????? | | ?????????????????????????# """ """ #????????????? | | ?????????????????????????############????????????? | | ?????????????????????????????????????????????????? | | ?????????????????????????????????????????????????? | | ?????????????????????????????????????????????????? | | ?????????????????????????????????????????????????? | | ?????????????????????????????????????????????????? | | ?????????????????????????????????????????????????? | +----------------------------------------------------+ Best States ------------- Heat Dissipation 55 Energy Generation 14 Energy Capacity 280 Matter Stores 300 Matter Capacity 300 Sight Range 16 Terrain Scan Density 10 Additional Mass Support 9 Armor Coverage 150 Resistance: KI 20 Power Shielding 33 Evasion (%) 63 Recoil Reduction 3 Offensive Hacking 10 Item Schematics ----------------- Imp. VSS Leg | -8/Storage | Hacked Robot Schematics ------------------ None Fabricated ------------ Nothing Alien Tech Used ----------------- None Achievements -------------- None Challenges ------------ None Game ------ Seed SwordReactiveMask Manual? 0 Play Time 00:20:02 Cumulative 70.3 hours Start 2024.09.23 @ 20:04:32 End 2024.09.23 @ 20:23:57 Sessions 1 Manual Loads 0 Difficulty Rogue Special Mode None Game No. 143 Rogue 143 Adventurer 0 Explorer 0 Win Type - Total 0 Types 0/0/0/0/0/0/0/0/0 Lore% 21 Gallery% 38 Achievement% 31 Wizard Run 0 Options --------- Layout 1 ASCII 0 Keyboard 1 Movement Arrows Keybinds 0 Fullscreen 1 Font 24/Smallcaps Map View 50x35 Zoom Use 0% Tactical HUD 1 Map Filters NONE Filters NONE Steam 1 RUN: c377525b-2dd7-43ff-ad40-d3e8da344e80